[Event "1000GM Winter GM Norm-2 2024"]
[Site "Sunnyvale/"]
[Date "2024.01.05"]
[Round "6.9"]
[White "Mosquera, Miguel"]
[Black "Nathan, Nitish"]
[Result "1-0"]
[ECO "B22"]
[WhiteElo "2365"]
[BlackElo "2190"]
[Annotator "RC"]
[PlyCount "125"]
[EventDate "2023.12.14"]
[EventType "schev"]
[EventCountry "USA"]
[SourceTitle "playchess.com"]
[Source "ChessBase"]
[SourceQuality "1"]
[TimeControl "5400+30"]

1. e4 {[%emt 0:04:59]} c5 {[%emt 0:00:07]} 2. Nf3 {[%emt 0:00:08]} Nc6 {[%emt 0:00:05]} 3. c3 {[%emt 0:00:07]} Nf6 {[%emt 0:00:06]} 4. e5 {[%emt 0:00:29]} Nd5 {[%emt 0:00:45]} 5. d4 {[%emt 0:00:35]} cxd4 {[%emt 0:00:34]} 6. Bc4 {[%emt 0:00:09]} Nb6 {[%emt 0:00:40]} 7. Bb3 {[%emt 0:00:10]} d5 {[%emt 0:01:45]} 8. exd6 {[%emt 0:00:43]} Qxd6 {[%emt 0:00:50]} 9. O-O {[%emt 0:00:47]} Be6 {[%emt 0:00:58]} 10. Bxe6 {[%emt 0:00:26]} Qxe6 {[%emt 0:00:10]} 11. Nxd4 {[%emt 0:00:22]} Nxd4 {[%emt 0:00:33]} 12. Qxd4 {[%emt 0:00:11]} Rd8 {[%emt 0:00:21]} 13. Qb4 {[%emt 0:01:26]} Qc4 {[%emt 0:08:38]} 14. Qa5 {[%emt 0:19:18]} Qa4 {[%emt 0:07:12]} 15. Qxa4+ {[%emt 0:00:36]} Nxa4 {[%emt 0:00:07]} 16. b3 {[%emt 0:00:02]} Nb6 {[%emt 0:03:59]} 17. Be3 {[%emt 0:04:15]} Nc8 {[%emt 0:01:54]} 18. Nd2 {[%emt 0:05:02]} e6 {[%emt 0:02:34]} 19. Nc4 {[%emt 0:09:37]} Be7 {[%emt 0:07:52]} 20. Rad1 {[%emt 0:01:54]} b6 {[%emt 0:08:25]} 21. Ne5 {[%emt 0:11:26]} Bd6 {[%emt 0:04:05]} 22. Bf4 {[%emt 0:07:48]} Bxe5 {[%emt 0:02:51]} 23. Bxe5 {[%emt 0:01:31]} f6 {[%emt 0:00:44]} 24. Rxd8+ {[%emt 0:02:50]} Kxd8 {[%emt 0:00:06]} 25. Rd1+ {[%emt 0:00:06]} Ke7 {[%emt 0:00:17]} 26. Bc7 {[%emt 0:00:07]} e5 {[%emt 0:03:19]} 27. c4 {[%emt 0:03:11]} Ke6 {[%emt 0:00:36]} 28. f4 {[%emt 0:00:09]} exf4 {[%emt 0:08:19]} 29. Bxf4 {[%emt 0:00:29]} Re8 {[%emt 0:04:51]} 30. Kf2 {[%emt 0:01:27]} g5 {[%emt 0:06:22]} 31. Bb8 {[%emt 0:02:42]} h5 {[%emt 0:06:00]} 32. h3 {[%emt 0:04:48]} Rg8 {[%emt 0:04:07]} 33. b4 {[%emt 0:02:51]} Ne7 {[%emt 0:05:31]} 34. Bxa7 {[%emt 0:12:24]} Ra8 {[%emt 0:00:07]} 35. Re1+ {[%emt 0:00:09]} Kd7 {[%emt 0:00:45]} 36. Bxb6 {[%emt 0:00:10]} Rxa2+ {[%emt 0:00:05]} 37. Re2 {[%emt 0:00:26]} Ra4 {[%emt 0:01:15]} 38. Bd4 {[%emt 0:00:15]} Nc6 {[%emt 0:01:07]} 39. Bxf6 {[%emt 0:00:25]} Rxb4 {[%emt 0:00:06]} 40. Re4 {[%emt 0:01:20]} g4 {[%emt 0:00:59]} 41. hxg4 {[%emt 0:00:31]} hxg4 {[%emt 0:00:06]} 42. Rxg4 {[%emt 0:00:11]} Ke6 {[%emt 0:01:09]} 43. Bc3 {[%emt 0:00:49]} Ra4 {[%emt 0:00:53]} 44. Re4+ {[%emt 0:03:01]} Kf5 {[%emt 0:00:42]} 45. Kf3 {[%emt 0:00:12]} Ra3 {[%emt 0:01:26]} 46. g4+ {[%emt 0:01:02]} Kg5 {[%emt 0:00:09]} 47. Re3 {[%emt 0:00:07]} Ra4 {[%emt 0:00:27]} 48. Re6 {[%emt 0:00:19]} Ra3 {[%emt 0:01:40]} 49. Rxc6 {[%emt 0:00:39]} Rxc3+ {[%emt 0:00:03]} 50. Ke4 {[%emt 0:00:03]} Kxg4 {[%emt 0:00:42]} 51. Kd4 {[%emt 0:00:19]} Rc1 {[%emt 0:00:16]} 52. Rf6 {[%emt 0:00:14]} Kg5 {[%emt 0:00:17]} 53. Rf8 {[%emt 0:00:07]} Rc2 {[%emt 0:00:14]} 54. c5 {[%emt 0:00:08]} Rd2+ {[%emt 0:00:09]} 55. Ke5 {[%emt 0:00:07]} Rc2 {[%emt 0:00:19]} 56. Rg8+ {[%emt 0:00:16]} Kh6 {[%emt 0:00:10]} 57. Kd6 {[%emt 0:00:07]} Rd2+ {[%emt 0:00:11]} 58. Kc7 {[%emt 0:00:07]} Rc2 {[%emt 0:00:09]} 59. c6 {[%emt 0:00:08]} Rd2 {[%emt 0:00:06]} 60. Kc8 {[%emt 0:00:15]} Rc2 {[%emt 0:00:41]} 61. c7 {[%emt 0:00:08]} Rb2 {[%emt 0:00:13]} 62. Rg1 {[%emt 0:00:22]} Rc2 {[%emt 0:00:10]} 63. Rd1 {[%emt 0:00:12]} 1-0

[Event "1000GM Winter GM Norm-2 2024"]
[Site "Sunnyvale/"]
[Date "2024.01.06"]
[Round "7.1"]
[White "Rajaram, Rohan"]
[Black "Miezis, Normunds"]
[Result "0-1"]
[ECO "B42"]
[WhiteElo "2151"]
[BlackElo "2419"]
[Annotator "RC"]
[PlyCount "97"]
[EventDate "2023.12.14"]
[EventType "schev"]
[EventCountry "USA"]
[SourceTitle "playchess.com"]
[Source "ChessBase"]
[SourceQuality "1"]
[TimeControl "5400+30"]

1. e4 {[%emt 0:03:29]} c5 {[%emt 0:00:17]} 2. Nf3 {[%emt 0:00:15]} e6 {[%emt 0:00:18]} 3. d4 {[%emt 0:00:00]} cxd4 {[%emt 0:00:11]} 4. Nxd4 {[%emt 0:00:00]} a6 {[%emt 0:00:08]} 5. Bd3 {[%emt 0:00:00]} Nc6 {[%emt 0:03:14]} 6. Nxc6 {[%emt 0:00:00]} bxc6 {[%emt 0:00:22]} 7. c4 {[%emt 0:00:00]} e5 {[%emt 0:01:44]} 8. O-O {[%emt 0:00:00]} Bc5 {[%emt 0:00:59]} 9. Qg4 {[%emt 0:00:00]} Qf6 {[%emt 0:04:12]} 10. Qe2 {[%emt 0:00:00]} Rb8 {[%emt 1:24:05]} 11. Nc3 {[%emt 0:00:00]} Ne7 {[%emt 0:00:00]} 12. Rb1 {[%emt 0:00:00]} Ng6 {[%emt 0:00:00]} 13. Be3 {[%emt 0:00:00]} Nf4 {[%emt 0:00:00]} 14. Qd2 {[%emt 0:00:00]} d6 {[%emt 0:00:00]} 15. a3 {[%emt 0:00:00]} h5 {[%emt 0:00:00]} 16. Bxf4 {[%emt 0:00:00]} exf4 {[%emt 0:00:00]} 17. Rfe1 {[%emt 0:00:00]} Qe5 {[%emt 0:03:30]} 18. b4 {[%emt 0:00:00]} Ba7 {[%emt 0:00:00]} 19. Nd5 {[%emt 0:00:00]} Rh6 {[%emt 0:00:00]} 20. b5 {[%emt 0:00:00]} axb5 {[%emt 0:00:00]} 21. cxb5 {[%emt 0:00:00]} cxd5 {[%emt 0:00:00]} 22. exd5 {[%emt 0:00:00]} Be3 {[%emt 0:00:00]} 23. fxe3 {[%emt 0:00:00]} f3 {[%emt 0:00:00]} 24. gxf3 {[%emt 0:00:00]} Qxd5 {[%emt 0:00:00]} 25. Qe2 {[%emt 0:00:00]} Kf8 {[%emt 0:00:00]} 26. Kh1 {[%emt 0:00:00]} Rf6 {[%emt 0:00:00]} 27. Be4 {[%emt 0:00:00]} Qc5 {[%emt 0:00:00]} 28. Rec1 {[%emt 0:11:30]} Qxa3 {[%emt 0:00:26]} 29. Qd2 {[%emt 0:00:00]} d5 {[%emt 0:04:07]} 30. Bxd5 {[%emt 0:00:00]} Bf5 {[%emt 0:00:59]} 31. Rb3 {[%emt 0:00:00]} Qe7 {[%emt 0:00:37]} 32. Qd4 {[%emt 0:00:00]} Rd6 {[%emt 0:02:14]} 33. Qf4 {[%emt 0:00:00]} Be6 {[%emt 0:00:40]} 34. Bxe6 {[%emt 0:00:00]} Qxe6 {[%emt 0:02:57]} 35. Rd3 {[%emt 0:00:00]} Rdb6 {[%emt 0:00:22]} 36. Rc6 {[%emt 0:01:24]} Qh3 {[%emt 0:00:27]} 37. Rd1 {[%emt 0:03:34]} Rxb5 {[%emt 0:00:04]} 38. Qg3 {[%emt 0:01:50]} Qxg3 {[%emt 0:00:21]} 39. hxg3 {[%emt 0:00:07]} Rb3 {[%emt 0:00:41]} 40. Rc5 {[%emt 0:00:55]} g6 {[%emt 0:00:25]} 41. Re5 {[%emt 0:00:13]} Rb2 {[%emt 0:00:36]} 42. Re4 {[%emt 0:05:53]} Re2 {[%emt 0:00:30]} 43. f4 {[%emt 0:00:51]} Kg7 {[%emt 0:00:45]} 44. f5 {[%emt 0:01:19]} g5 {[%emt 0:00:15]} 45. Rc4 {[%emt 0:02:34]} Rbb2 {[%emt 0:01:07]} 46. e4 {[%emt 0:00:42]} Rh2+ {[%emt 0:00:28]} 47. Kg1 {[%emt 0:00:01]} Rhg2+ {[%emt 0:00:43]} 48. Kh1 {[%emt 0:00:43]} Rxg3 {[%emt 0:00:06]} 49. e5 {[%emt 0:00:15]} 0-1

[Event "1000GM Winter GM Norm-2 2024"]
[Site "Sunnyvale/"]
[Date "2024.01.06"]
[Round "7.2"]
[White "Sheng, Joshua"]
[Black "Wang, Isaac"]
[Result "1/2-1/2"]
[ECO "B41"]
[WhiteElo "2461"]
[BlackElo "2316"]
[Annotator "TA"]
[PlyCount "100"]
[EventDate "2023.12.14"]
[EventType "schev"]
[EventCountry "USA"]
[SourceTitle "playchess.com"]
[Source "ChessBase"]
[SourceQuality "1"]
[TimeControl "5400+30"]

{[%evp 11,100,15,24,16,50,36,34,22,13,14,23,15,28,31,20,0,11,16,28,5,30,5,4,-100,-108,-92,-98,-95,-103,-87,-99,-103,-97,-169,-89,-94,-100,-99,-95,-97,-98,-106,-106,-112,-104,-105,-100,-100,-89,-113,-91,-107,-83,-112,-112,-147,-147,-147,-147,-147,-147,-147,-109,-134,-118,-118,-118,-118,-118,-118,-118,-118,-118,-118,-118,-118,0,-118,-35,-62,-32,-32,-33,-34,-34,-72,0,-4,0,-89,0]} 1. e4 {[%emt 0:01:45]} c5 {[%emt 0:00:19]} 2. Nf3 {[%emt 0:00:03]} e6 {[%emt 0:00:21]} 3. d4 {[%emt 0:00:02]} cxd4 {[%emt 0:00:07]} 4. Nxd4 {[%emt 0:00:02]} a6 {[%emt 0:00:10]} 5. c4 {[%emt 0:00:02]} Nf6 {[%emt 0:00:15]} 6. Nc3 {[%emt 0:00:03]} Bb4 {[%emt 0:00:09]} 7. Qd3 {[%emt 0:00:02] B41: Sicilian: Kan Variation: 5 c4.} O-O {[%emt 0:00:44]} 8. e5 {[%emt 0:04:32] 8.e5 scores better than 8.Be2.} Ne8 {[%emt 0:00:34][%cal Bf6e8,Be8d6,Bd6e4,Be4d2][%mdl 32]} 9. a3 {[%emt 0:01:33] White is slightly better.} Bxc3+ {[%emt 0:01:08]} 10. Qxc3 {[%emt 0:00:05]} d6 {[%emt 0:00:25] Black is weak on the dark squares} 11. exd6 {[%emt 0:00:22]} e5 {[%emt 0:04:46]} 12. Nf3 {[%emt 0:01:02] Threatens to win with c5.} Nxd6 {[%emt 0:00:25]} 13. Be2 {[%emt 0:01:10]} (13. Qxe5 $2 {too greedy.} Re8 $19) 13... Nc6 {[%emt 0:02:15]} 14. O-O {[%emt 0:02:21] [#]} Qf6 $146 {[%emt 0:03:21]} ({Predecessor:} 14... Bg4 15. Re1 {½-½ Santos Ruiz,M (2597)-Iermito,S (2525) Menorca op 1st 2022 (7)}) 15. b3 {[%emt 0:15:20]} Bg4 {[%emt 0:06:30]} 16. Bb2 {[%emt 0:01:04]} Rad8 {[%emt 0:07:31]} 17. Rae1 {[%emt 0:03:36]} (17. Rfe1 $11 {remains equal.}) 17... Ne4 $17 {[%emt 0:04:14]} 18. Qe3 {[%emt 0:07:09] [#]} Bxf3 {[%emt 0:01:31]} 19. Bxf3 {[%emt 0:00:03]} Nd2 {[%emt 0:00:26]} 20. Bd5 {[%emt 0:00:02]} Nxf1 {[%emt 0:00:12]} 21. Rxf1 {[%emt 0:00:10]} Qf4 {[%emt 0:06:14]} 22. Qb6 {[%emt 0:02:28]} (22. Qe2 $17 {keeps fighting.}) 22... Nd4 {[%emt 0:06:40]} (22... Rd7 $19 23. g3 Qd2 24. Bxc6 Qh6 {[%mdl 64] Pin}) 23. Bxd4 {[%emt 0:03:21]} exd4 {[%emt 0:01:33]} 24. Rd1 {[%emt 0:00:23][%cal Bf1d1,Bd1d4,Bd4e4,Be4e7][%mdl 32] Prevents Qd2.} Qd6 {[%emt 0:06:24]} 25. Qxd6 {[%emt 0:04:03]} Rxd6 {[%emt 0:00:03]} 26. Rxd4 {[%emt 0:00:06][%cal Od5f7][%mdl 4096] Endgame aiming for Bxf7+! KRR-KRB} Rfd8 {[%emt 0:00:48]} 27. g3 {[%emt 0:01:19]} g6 {[%emt 0:00:28]} 28. Kf1 {[%emt 0:02:45]} Kg7 {[%emt 0:01:05]} 29. Re4 {[%emt 0:00:45]} b5 {[%emt 0:01:28]} 30. Re7 {[%emt 0:09:16]} R8d7 {[%emt 0:00:57]} 31. Re8 {[%emt 0:01:06]} bxc4 {[%emt 0:01:48]} 32. Bxc4 {[%emt 0:00:10]} Rd1+ {[%emt 0:01:26]} 33. Kg2 {[%emt 0:00:33]} Ra1 {[%emt 0:00:52]} 34. Bxa6 {[%emt 0:03:37]} Rxa3 {[%emt 0:00:26]} 35. Bc4 {[%emt 0:00:02]} Ra2 {[%emt 0:00:22] ...Rdd2 would be deadly.} 36. Re3 {[%emt 0:00:56]} Rb2 {[%emt 0:00:36]} 37. h4 {[%emt 0:01:02]} Rdd2 {[%emt 0:00:54]} 38. Rf3 {[%emt 0:00:12]} f5 {[%emt 0:00:20]} 39. h5 {[%emt 0:02:49]} Kh6 {[%emt 0:00:47]} 40. hxg6 {[%emt 0:00:14]} hxg6 {[%emt 0:00:02]} 41. Kg1 {[%emt 0:01:44]} Kg5 {[%emt 0:01:17]} 42. Kg2 {[%emt 0:01:05]} Rd4 {[%emt 0:01:29]} 43. Re3 {[%emt 0:03:39]} Rdd2 {[%emt 0:01:59] Inhibits Re2.} 44. Rf3 {[%emt 0:00:04]} Kf6 {[%emt 0:02:46]} ({Better is} 44... Ra2 $17 45. Bd3 Kh6) 45. g4 $15 {[%emt 0:00:33]} Kg5 {[%emt 0:01:01]} 46. gxf5 {[%emt 0:00:05]} gxf5 {[%emt 0:00:05]} 47. Rg3+ {[%emt 0:00:09]} Kf6 {[%emt 0:01:40]} 48. Rf3 {[%emt 0:00:03]} Kg5 {[%emt 0:00:15]} ({Black should try} 48... Rd4 $17 49. Rc3 Kg5 50. Rg3+ Kf4) 49. Rg3+ $11 {[%emt 0:00:02]} Kf6 {[%emt 0:01:25]} (49... Kf4 $11 50. Rf3+ Kg5) 50. Rf3 $17 {[%emt 0:00:04] [#]} Kg5 {[%emt 0:00:51] White happily takes the draw.   Weighted Error Value: White=0.11 (very precise) /Black=0.18 (very precise)} ({Black should play} 50... Rd4 $1 $17 51. Rc3 Re4) 1/2-1/2

[Event "1000GM Winter GM Norm-2 2024"]
[Site "Sunnyvale/"]
[Date "2024.01.06"]
[Round "7.4"]
[White "Galyas, Miklos"]
[Black "Amburgy, Ryan"]
[Result "1/2-1/2"]
[ECO "D02"]
[WhiteElo "2423"]
[BlackElo "2200"]
[Annotator "RC"]
[PlyCount "63"]
[EventDate "2023.12.14"]
[EventType "schev"]
[EventCountry "USA"]
[SourceTitle "playchess.com"]
[Source "ChessBase"]
[SourceQuality "1"]
[TimeControl "5400+30"]

1. d4 {[%emt 0:00:59]} Nf6 {[%emt 0:00:04]} 2. Nf3 {[%emt 0:00:14]} d5 {[%emt 0:00:06]} 3. Bf4 {[%emt 0:00:09]} c5 {[%emt 0:00:05]} 4. e3 {[%emt 0:00:08]} Nc6 {[%emt 0:00:05]} 5. Nbd2 {[%emt 0:00:11]} cxd4 {[%emt 0:00:07]} 6. exd4 {[%emt 0:00:07]} Qb6 {[%emt 0:00:05]} 7. Nb3 {[%emt 0:01:08]} Bf5 {[%emt 0:00:06]} 8. a4 {[%emt 0:02:53]} a6 {[%emt 0:00:08]} 9. a5 {[%emt 0:02:01]} Qd8 {[%emt 0:00:05]} 10. c3 {[%emt 0:03:27]} e6 {[%emt 0:00:12]} 11. Ne5 {[%emt 0:02:11]} Nxe5 {[%emt 0:02:22]} 12. Bxe5 {[%emt 0:00:53]} Be7 {[%emt 0:00:27]} 13. Be2 {[%emt 0:04:22]} O-O {[%emt 0:00:49]} 14. O-O {[%emt 0:00:04]} Rc8 {[%emt 0:00:51]} 15. Bxf6 {[%emt 0:10:57]} gxf6 {[%emt 0:01:49]} 16. Bd3 {[%emt 0:05:31]} Bxd3 {[%emt 0:01:13]} 17. Qxd3 {[%emt 0:00:01]} Kh8 {[%emt 0:00:12]} 18. f4 {[%emt 0:05:20]} Rg8 {[%emt 0:00:30]} 19. Nd2 {[%emt 0:02:59]} Qc7 {[%emt 0:01:50]} 20. g3 {[%emt 0:03:14]} Bd6 {[%emt 0:01:02]} 21. Kh1 {[%emt 0:01:04]} Rg4 {[%emt 0:06:25]} 22. Nf3 {[%emt 0:02:35]} Qc4 {[%emt 0:02:51]} 23. Qxc4 {[%emt 0:00:38]} Rxc4 {[%emt 0:00:02]} 24. Ne1 {[%emt 0:05:31]} Rg8 {[%emt 0:06:09]} 25. Nd3 {[%emt 0:00:20]} f5 {[%emt 0:00:21]} 26. Rac1 {[%emt 0:06:04]} Rgc8 {[%emt 0:00:58]} 27. Kg2 {[%emt 0:01:45]} Kg7 {[%emt 0:03:55]} 28. Kf3 {[%emt 0:00:29]} Ra4 {[%emt 0:01:31]} 29. Ra1 {[%emt 0:00:32]} Rxa1 {[%emt 0:00:07]} 30. Rxa1 {[%emt 0:00:02]} Kf6 {[%emt 0:00:57]} 31. Ke3 {[%emt 0:10:54]} h5 {[%emt 0:00:49]} 32. Rc1 {[%emt 0:05:05]} 1/2-1/2

[Event "1000GM Winter GM Norm-2 2024"]
[Site "Sunnyvale/"]
[Date "2024.01.06"]
[Round "7.5"]
[White "Xu, Yi"]
[Black "Guo, Andrew"]
[Result "1/2-1/2"]
[ECO "B31"]
[WhiteElo "2511"]
[BlackElo "2255"]
[Annotator "TA"]
[PlyCount "41"]
[EventDate "2023.12.14"]
[EventType "schev"]
[EventCountry "USA"]
[SourceTitle "playchess.com"]
[Source "ChessBase"]
[SourceQuality "1"]
[TimeControl "5400+30"]

{[%evp 16,41,19,20,31,27,21,22,29,21,34,22,26,36,24,20,34,39,42,39,72,62,138,41,27,18,54,4]} 1. e4 {[%emt 0:00:17]} c5 {[%emt 0:00:03]} 2. Nf3 {[%emt 0:00:06]} Nc6 {[%emt 0:00:03]} 3. Bb5 {[%emt 0:00:05]} g6 {[%emt 0:00:04]} 4. Bxc6 {[%emt 0:00:05]} dxc6 {[%emt 0:00:03]} 5. d3 {[%emt 0:00:08]} Bg7 {[%emt 0:00:04]} 6. h3 {[%emt 0:00:07]} Nf6 {[%emt 0:00:01]} 7. Nc3 {[%emt 0:00:21]} Nd7 {[%emt 0:00:08]} 8. Be3 {[%emt 0:00:15]} e5 {[%emt 0:00:05]} 9. Qd2 {[%emt 0:00:26]} h6 {[%emt 0:00:24] B31: Sicilian: 2...Nc6 3 Bb5 g6.} 10. Nh2 {[%emt 0:01:59]} Qe7 {[%emt 0:00:48]} 11. O-O {[%emt 0:00:13]} Nf8 {[%emt 0:00:01] The position is equal.} 12. f4 {[%emt 0:00:09]} exf4 {[%emt 0:00:02]} 13. Bxf4 {[%emt 0:00:09]} Ne6 {[%emt 0:00:03]} 14. Bg3 {[%emt 0:00:17]} Qg5 {[%emt 0:00:05] Inhibits e5.} 15. Qe1 {[%emt 0:01:06]} O-O {[%emt 0:03:24]} (15... Nd4 {with more complications.} 16. Qf2 O-O 17. Bd6 Bxh3 18. Bf4 Qxg2+ 19. Qxg2 Bxg2 20. Kxg2 Nxc2 21. Rad1 b6) 16. e5 {[%emt 0:08:57]} (16. Bd6 {seems wilder.} Nd4 17. h4 Qd8 18. Bxf8 Qxf8 19. Qf2) 16... Nd4 {[%emt 0:03:15]} 17. Ne4 {[%emt 0:00:23][%csl LRc5,LRg5]} Qe7 {[%emt 0:01:03]} 18. Qd2 {[%emt 0:10:06]} Nf5 {[%emt 0:03:42] [#]} ({Black should play} 18... c4 $1 $14) 19. Rae1 $146 {[%emt 0:15:27] White is more active.} ({Better is} 19. Bf4 $16) ({Predecessor:} 19. Bf2 b6 20. Ng4 h5 21. Ngf6+ Kh8 22. g4 Qxe5 23. gxf5 Bxf6 24. Bg3 Qd4+ 25. Kh1 Kg7 26. Nxf6 Qxf6 27. fxg6 Qxg6 {1-0 Zierk,S (2499)-Azaladze,S (2439) Titled Tuesday intern op 4th Aug 2pm blitz 2020 (4)}) 19... Nxg3 $14 {[%emt 0:09:29]} 20. Nxg3 {[%emt 0:00:34]} Be6 {[%emt 0:00:15]} 21. Nf3 {[%emt 0:09:04] Weighted Error Value: White=0.12 (very precise) /Black=0.15 (very precise)} ({White should try} 21. Ne4 $14) 1/2-1/2

[Event "1000GM Winter GM Norm-2 2024"]
[Site "Sunnyvale/"]
[Date "2024.01.06"]
[Round "7.6"]
[White "Delgado Ramirez, Neuris"]
[Black "Shivakumar, Shawnak"]
[Result "1-0"]
[ECO "B10"]
[WhiteElo "2517"]
[BlackElo "2307"]
[Annotator "TA"]
[PlyCount "93"]
[EventDate "2023.12.14"]
[EventType "schev"]
[EventCountry "USA"]
[SourceTitle "playchess.com"]
[Source "ChessBase"]
[SourceQuality "1"]
[TimeControl "5400+30"]

{[%evp 21,92,0,-15,-19,0,0,0,0,0,-6,0,0,0,0,11,14,16,29,23,7,76,65,183,186,192,195,202,219,201,190,203,209,218,216,206,205,188,107,107,107,102,108,220,150,289,81,3338,797,29988,597,565,525,1307,1214,1135,1096,3625,3689,2523,2595,6307,6247,12838,12833,12833,1059,12843,12843,12848,12849,29997,29998,29999]} 1. c4 {[%emt 0:08:39]} c6 {[%emt 0:00:24]} 2. e4 {[%emt 0:00:07]} d5 {[%emt 0:00:26]} 3. cxd5 {[%emt 0:00:08]} cxd5 {[%emt 0:00:04]} 4. exd5 {[%emt 0:00:04]} Nf6 {[%emt 0:00:18]} 5. Nc3 {[%emt 0:00:06]} Nxd5 {[%emt 0:00:06]} 6. Nf3 {[%emt 0:00:06]} Nc6 {[%emt 0:00:13]} 7. Bc4 {[%emt 0:00:37]} Nb6 {[%emt 0:00:08]} 8. Bb3 {[%emt 0:00:07]} Bf5 {[%emt 0:00:05]} 9. d4 {[%emt 0:00:16]} e6 {[%emt 0:00:05]} 10. O-O {[%emt 0:01:16]} Be7 {[%emt 0:00:20]} 11. Be3 {[%emt 0:05:38]} O-O {[%emt 0:00:55]} 12. Ne5 {[%emt 0:00:36] B10: Caro-Kann: 2 d3 and 2 c4.} Nxe5 {[%emt 0:05:27]} 13. dxe5 {[%emt 0:00:06]} Qc7 {[%emt 0:01:14]} 14. Qf3 {[%emt 0:00:07] [#] The position is equal.} Qxe5 $146 {[%emt 0:06:48]} ({Predecessor:} 14... Nd7 15. Nd5 exd5 16. Qxf5 g6 17. Rac1 Nc5 18. Qf3 Rad8 19. Bxd5 Qa5 20. Bh6 Nd3 21. Bxf8 Nxe5 {1-0 Mortensen,E (2445)-Pedersen,F (2266) DEN-chT 9900 1999 (2.3)}) 15. Qxb7 {[%emt 0:00:15]} Bd6 {[%emt 0:00:39][%csl Gd6][%cal Re5h2]} 16. g3 {[%emt 0:00:05] Active counter play!} Bb4 {[%emt 0:01:30]} 17. Rfe1 {[%emt 0:03:30][%cal Bf1e1,Be1e5,Be5g5][%mdl 32]} Bxc3 {[%emt 0:14:58] [#]} 18. Bd2 {[%emt 0:02:31][%mdl 64] Discovered Attack} Qf6 {[%emt 0:18:34]} (18... Qb8 19. Qxb8) 19. Bxc3 {[%emt 0:00:55]} Qg6 {[%emt 0:00:29] Black is weak on the dark squares} 20. Rad1 {[%emt 0:01:33]} Bg4 {[%emt 0:02:22]} (20... Bc2 $11 {remains equal.}) 21. Rd4 {[%emt 0:00:09]} Qh5 {[%emt 0:01:02] [#]} (21... h6 $14) 22. Re5 $3 $18 {[%emt 0:11:19][%mdl 576] Deflection} Qg6 {[%emt 0:03:52]} (22... Qxe5 $2 23. Rxg4 Rfb8 24. Qe7 $18 (24. Rxg7+ $2 Qxg7 25. Qe4 e5 $19) (24. Bxe5 Rxb7 25. Rxg7+ Kf8 $14)) (22... Bf3 23. Rxh5) 23. h4 $1 {[%emt 0:09:07]} h6 {[%emt 0:05:46][%cal Ob6d5] [#] Against Rg5} 24. Rg5 {[%emt 0:08:28][%mdl 512]} hxg5 {[%emt 0:01:25]} 25. Rxg4 {[%emt 0:00:17]} Qb1+ {[%emt 0:10:05]} 26. Kg2 {[%emt 0:01:31]} Rac8 {[%emt 0:12:56]} 27. Rxg5 {[%emt 0:01:16]} Rxc3 {[%emt 0:00:10]} 28. bxc3 {[%emt 0:00:05][%cal Ob3e6]} Nc4 {[%emt 0:00:06]} 29. Rg4 {[%emt 0:11:42]} (29. Qxa7 $6 Qe4+ 30. f3 Qe2+ 31. Qf2 Ne3+ 32. Kg1 Qd3 $16) (29. Qf3 $1 $18 Nd6 30. Re5) 29... Nd2 $16 {[%emt 0:06:36] [#]} 30. Qb5 {[%emt 0:00:33] Prevents Qf1+.} a6 {[%emt 0:01:34]} 31. Qxa6 {[%emt 0:04:12] Rb4 is the strong threat.} Rd8 {[%emt 0:00:40]} (31... Nxb3 $16 32. axb3 Qxb3) 32. Rb4 {[%emt 0:08:23][%cal Ob3e6] Bxe6! would be deadly.} Qe1 {[%emt 0:03:32]} (32... Qa1 $16 {was necessary.} 33. Rd4 Rxd4 34. cxd4 Qxd4) 33. h5 $2 {[%emt 0:05:57]} (33. Bc2 $18 {and White stays clearly on top. Threatens to win with Rd4.} Rf8 34. Rd4) 33... Rd6 {[%emt 0:01:23][%mdl 8192] [#] Dodges Rd4. A mistake that costs the game.} 34. Bc2 $1 {[%emt 0:09:43]} g6 {[%emt 0:01:48]} (34... Rd8 35. Rd4) 35. Qb5 {[%emt 0:00:39]} (35. Qxd6 $2 {is a self mate.} Qf1+ 36. Kh2 Nf3#) (35. Qa8+ $142 Kg7 36. h6+ Kf6 37. Rf4+ {[%mdl 64] Skewer} Ke5 38. Qh8+ f6 39. Qxf6+ Kd5 40. Qd4+ Kc6 41. Ba4+ Kb7 42. Rf7+ Kc8 43. Qc5+ Kb8 44. Qxd6+ Kc8 45. Qf8#) 35... Kg7 $18 {[%emt 0:00:38]} 36. Rd4 {[%emt 0:01:08] Wards off Rd5} Rd5 {[%emt 0:01:15]} 37. Rxd5 {[%emt 0:00:42]} exd5 {[%emt 0:00:02]} 38. hxg6 {[%emt 0:01:39]} ({Weaker is} 38. Qxd5 Qf1+ 39. Kh2 Qxf2+ 40. Kh3 Nf3 41. hxg6 Qf1+ 42. Kg4 Nh2+ 43. Kh4 Nf3+ 44. Kg4 Nh2+ 45. Kh4 Nf3+ 46. Kg4 $11) 38... Ne4 {[%emt 0:00:13]} 39. Bxe4 {[%emt 0:01:03]} (39. Qxd5 $2 {leads to mate.} Qxf2+ 40. Kh3 Qxg3#) 39... Qxe4+ {[%emt 0:00:09][%mdl 4096] Endgame KQ-KQ} 40. Kh2 {[%emt 0:00:08] Hoping for gxf7.} Kxg6 {[%emt 0:00:33]} 41. a4 {[%emt 0:00:54] aiming for a5.} Kh5 {[%emt 0:01:11]} 42. Qb4 {[%emt 0:00:32]} Qc2 {[%emt 0:00:55]} 43. Qd4 {[%emt 0:00:10]} (43. Kg2 $142 Qa2 44. a5) 43... Qa2 {[%emt 0:00:29]} 44. Qf6 {[%emt 0:00:15]} Qxa4 {[%emt 0:00:34]} 45. f3 {[%emt 0:00:35][%cal Oh2h3] Threatening mate with Kh3!} Qc2+ {[%emt 0:00:28]} 46. Kh3 {[%emt 0:00:06][%csl Gf3,Gh3][%cal Rg3g4]} Qg6 {[%emt 0:00:08]} 47. Qh4# {[%emt 0:00:06] A superb game by Delgado Ramirez.   Weighted Error Value: White=0.47/Black=0.39} 1-0